[Event "Slovakian ECo-C Extraliga 2024-25"]
[Site "Slovakia"]
[Date "2025.01.18"]
[Round "3.8"]
[White "Brnusak, Tomas"]
[Black "Kasperek, Ryszard"]
[Result "1-0"]
[Annotator "TA"]
[ECO "B43"]
[WhiteElo "2236"]
[BlackElo "2069"]
[PlyCount "61"]
[EventDate "2024.09.12"]
[EventType "team-tourn"]
[EventCountry "SVK"]
[SourceTitle "playchess.com"]
[Source "ChessBase"]
[SourceQuality "1"]
[TimeControl "5400+30"]

{[%evp 12,61,34,31,48,17,0,2,0,-9,-6,-27,-7,-53,0,0,270,288,396,412,398,157,150,154,162,162,300,104,87,0,0,0,250,277,273,271,271,262,258,273,266,260,249,253,521,491,524,508,467,451,29980,29979]} 1. e4 {[%emt 0:00:05]} c5 {[%emt 0:00:25]} 2. Nc3 {[%emt 0:00:43]} e6 {[%emt 0:00:21]} 3. Nf3 {[%emt 0:00:21]} a6 {[%emt 0:01:37]} 4. d4 {[%emt 0:00:25]} cxd4 {[%emt 0:00:09]} 5. Nxd4 {[%emt 0:00:05]} b5 {[%emt 0:00:17][%cal Bb7b5,Bb5b4][%mdl 32]} 6. Bd3 {[%emt 0:00:28]} Bb7 {[%emt 0:00:55]} 7. O-O {[%emt 0:00:33]} b4 {[%emt 0:01:48]} 8. Nce2 {[%emt 0:02:19][%cal Bc3e2,Be2g3,Bg3f5][%mdl 32]} Nf6 {[%emt 0:00:36]} 9. e5 {[%emt 0:04:46]} Ng4 $1 {[%emt 0:03:03]} 10. Bf4 {[%emt 0:04:12]} (10. f4 $5) 10... Qa5 {[%emt 0:08:35]} 11. Ng3 {[%emt 0:31:45]} Nxe5 {[%emt 0:13:26]} 12. Qh5 {[%emt 0:02:47]} (12. Re1 $11 {deserves consideration.} Ng6 13. Bc1) 12... Nec6 {[%emt 0:10:24]} ({Black should try} 12... Nbc6 $15 13. Nb3 Qc7) 13. Ndf5 $11 {[%emt 0:02:13]} (13. Bxh7 Qxh5 14. Nxh5 Nxd4 $19) 13... exf5 $2 {[%emt 0:14:56][%mdl 8192]} (13... Ne5 $1 $11 {and Black is okay.} 14. Qg5 f6 15. Nxg7+ Kf7 16. Qh5+ Kxg7 17. Bh6+ Kg8 18. Bxf8 (18. Qe8 $2 Nbc6 $19) 18... Kxf8 19. Qh6+ Ke8 (19... Ke7 20. Qg7+ Nf7 21. Nf5+ exf5 22. Rfe1+ Kd6 23. Bc4 $17)) 14. Rfe1+ {[%emt 0:00:44]} (14. Bxf5 g6 15. Rae1+ Kd8 (15... Be7 16. Qh6 $11) 16. Qh4+ Be7 17. Rxe7 Nxe7 $17) 14... Be7 {[%emt 0:00:30]} 15. Nxf5 {[%emt 0:02:32]} (15. Bxf5 Kd8 $11 (15... g6 16. Qh6 $14)) 15... Kd8 {[%emt 0:00:46]} 16. Qxf7 $2 {[%emt 0:07:27]} (16. Nxg7 Qxh5 17. Nxh5 d5 $15) (16. Qg4 $1 $18 {[%cal Rg4g7]}) 16... Rf8 $16 {[%emt 0:03:49]} 17. Qxg7 {[%emt 0:03:10][%cal Re1e7] White is much more active. The black rooks are passive.} (17. Qh5 g6 18. Qxh7 gxf5 $19) 17... Rxf5 {[%emt 0:06:28]} 18. Bg3 $1 $40 {[%emt 0:00:31][%mdl 128] White is out for blood.} d6 {[%emt 0:14:44]} (18... Bf8 $142 19. Qxh7 Rxf2) 19. Rxe7 $2 {[%emt 0:13:44]} (19. Bxf5 $18 {[%cal Oe1e7] and the rest is easy. Intending Rxe7! and mate.} Qxf5 20. Rad1) 19... Nxe7 {[%emt 0:04:16]} 20. Re1 {[%emt 0:01:10] The board is on fire.} (20. Bxd6 $16 Nbc6 21. Re1) 20... Nbc6 $1 $11 {[%emt 0:03:02]} 21. Bxd6 {[%emt 0:00:41][%cal Re1e7] A strong pair of Bishops.} Rg5 $2 {[%emt 0:06:49]} (21... Kc8 $11 22. Rxe7 Nxe7 23. Qxe7 Rd5) 22. Bxe7+ $18 {[%emt 0:01:27]} Nxe7 {[%emt 0:00:06]} 23. Qxe7+ {[%emt 0:00:23]} (23. Qf8+ Kc7 24. Rxe7+ Kb6 25. Rxb7+ Kxb7) 23... Kc8 {[%emt 0:00:02][%cal Bd8c8,Bc8c7,Bc7b6,Bb6b7,Bb7c6][%mdl 32]} 24. Qf8+ {[%emt 0:03:20]} Kc7 {[%emt 0:01:47] [#]} 25. Re7+ $1 {[%emt 0:00:41]} Kb6 {[%emt 0:00:23] [#]} 26. Rxb7+ $1 {[%emt 0:00:59][%mdl 512]} Kxb7 {[%emt 0:00:07]} 27. Be4+ {[%emt 0:00:08]} Rd5 $2 {[%emt 0:02:41]} (27... Kc7 {is a better defense.} 28. Qe7+ (28. Qxa8 b3 $16) (28. Bxa8 Qc5 $18) 28... Kc8 29. Qe8+ (29. Bxa8 Re5 $16) 29... Kc7 30. Qc6+ (30. Bxa8 Qc5 $18) (30. Qxa8 b3 $16) 30... Kd8) 28. Qf7+ {[%emt 0:00:06]} (28. Bxd5+ Qxd5 29. Qxb4+ Kc6 30. Qa4+ Kd6 31. Qa3+ Kd7 32. Qa4+ Ke7 33. Qh4+ Kf8 $19) 28... Kc6 {[%emt 0:01:41][%cal Oa8d8] And now ...Rad8! would win.} 29. Qe6+ {[%emt 0:00:06]} (29. Bxd5+ $2 {loses.} Qxd5 30. Qf6+ Kb5 $19) 29... Kc7 {[%emt 0:00:02]} 30. Bxd5 {[%emt 0:00:11]} (30. Qxd5 Qxd5 31. Bxd5 Rd8 $19) 30... Rc8 {[%emt 0:01:12]} (30... Re8 $18 31. Qc6+ (31. Qxe8 Qxd5 32. g3 Qxa2 $18) 31... Kd8 32. Qd6+ Kc8 33. Be6+ Rxe6 34. Qxe6+ Kb7) 31. Qe7+ {[%emt 0:00:27]} 1-0

[Event "Slovakian ECo-C Extraliga 2024-25"]
[Site "Slovakia"]
[Date "2025.01.18"]
[Round "3.8"]
[White "Urhegyi, Marton"]
[Black "Varga, Zoltan"]
[Result "1-0"]
[Annotator "TA"]
[ECO "B01"]
[WhiteElo "2231"]
[BlackElo "2304"]
[PlyCount "52"]
[EventDate "2024.09.12"]
[EventType "team-tourn"]
[EventCountry "SVK"]
[SourceTitle "playchess.com"]
[Source "ChessBase"]
[SourceQuality "1"]
[TimeControl "5400+30"]

{[%evp 9,52,84,83,28,31,21,28,16,28,0,0,-6,10,0,6,0,16,0,20,27,26,14,252,253,253,255,253,260,251,243,318,285,279,243,316,299,304,302,306,309,295,294,346,354,348]} 1. e4 {[%emt 0:11:57]} d5 {[%emt 0:00:01]} 2. exd5 {[%emt 0:00:12]} Qxd5 {[%emt 0:13:52]} 3. Nc3 {[%emt 0:00:04]} Qe5+ {[%emt 0:00:07]} 4. Be2 {[%emt 0:00:05]} Bg4 {[%emt 0:00:06]} 5. d4 {[%emt 0:00:05]} Bxe2 {[%emt 0:00:05]} 6. Qxe2 {[%emt 0:00:08] B01: Scandinavian Defence.} (6. Ngxe2 $16 Qa5 7. a3) 6... Qxe2+ $11 {[%emt 0:00:04]} 7. Ngxe2 {[%emt 0:00:08]} c6 {[%emt 0:00:05]} 8. Bg5 $146 {[%emt 0:00:04][%cal Bc1g5,Bg5h4,Bh4g3,Bg3f4][%mdl 32] White has an edge.} (8. Bf4 e6 9. a3 a5 10. O-O Nf6 11. f3 Be7 12. Ne4 O-O 13. c3 a4 14. Rad1 {0-1 Barati,K-Lobkin,B (1795) World-chT Rapid 2023 (1.10)}) 8... h6 {[%emt 0:00:04]} 9. Bh4 {[%emt 0:00:04]} e6 {[%emt 0:00:05]} 10. O-O-O {[%emt 0:00:07]} Ne7 {[%emt 0:00:17]} 11. Bg3 {[%emt 0:00:14]} Nf5 {[%emt 0:00:04]} 12. Bf4 {[%emt 0:00:04]} Nd7 {[%emt 0:00:04]} 13. Ne4 {[%emt 0:00:06]} O-O-O {[%emt 0:00:06]} 14. g4 {[%emt 0:00:04][%cal Oh2h4] [#]} Nh4 {[%emt 0:00:07]} 15. Bg3 $36 {[%emt 0:00:08][%mdl 2048] White has the initiative.} Be7 {[%emt 0:00:05] This move loses the game for Black.} (15... g5 $11 {and Black is okay.}) 16. Bxh4 $18 {[%emt 0:00:05]} Bxh4 {[%emt 0:00:05]} 17. Nd6+ {[%emt 0:00:08]} Kc7 {[%emt 0:00:06]} 18. Nxf7 {[%emt 0:00:05] Excellent horsemanship.} Bxf2 {[%emt 0:00:09]} 19. Kb1 {[%emt 0:00:18]} Nf6 {[%emt 0:00:05]} 20. Nxh8 {[%emt 0:00:06]} Rxh8 {[%emt 0:00:04]} 21. h3 {[%emt 0:00:05]} Bh4 {[%emt 0:00:48][%cal Bf2h4,Bh4g3,Bg3d6][%mdl 32]} 22. Nf4 {[%emt 0:00:00][%cal Of4g6] [#] Ng6! would now be deadly.} Re8 {[%emt 0:00:00]} 23. Ng6 {[%emt 0:00:00]} Bg3 {[%emt 0:00:00]} 24. Rd3 {[%emt 0:00:00]} Bd6 {[%emt 0:00:00]} 25. Re1 {[%emt 0:00:04]} b5 {[%emt 0:00:00]} 26. Rde3 {[%emt 0:00:06]} Kd7 {[%emt 0:00:00] Weighted Error Value: White=0.12 (very precise) /Black=0.37  Loses game:     	---       	Black=1      Inaccurate:     	White=1     	Black=2      OK:         	White=5     	Black=6      Best:        	White=2     	Black=1} 1-0

[Event "Slovakian ECo-C Extraliga 2024-25"]
[Site "Slovakia"]
[Date "2025.01.18"]
[Round "3.8"]
[White "Petran, Peter"]
[Black "Bury, Rastislav"]
[Result "1/2-1/2"]
[Annotator "TA"]
[ECO "D78"]
[WhiteElo "2165"]
[BlackElo "2095"]
[PlyCount "96"]
[EventDate "2024.09.12"]
[EventType "team-tourn"]
[EventCountry "SVK"]
[SourceTitle "playchess.com"]
[Source "ChessBase"]
[SourceQuality "1"]
[TimeControl "5400+30"]

{[%evp 18,96,40,34,54,40,37,12,15,1,11,12,42,41,39,38,45,39,55,17,33,23,43,18,20,0,-2,-9,11,-32,0,0,0,-4,34,32,97,95,89,99,98,91,139,134,267,258,279,263,277,272,283,18,8,0,0,0,0,0,0,-19,0,0,0,0,0,-62,-78,-82,0,0,0,0,0,0,0,0,0,0,0,0,0]} 1. g3 {[%emt 0:00:06]} d5 {[%emt 0:00:55]} 2. Nf3 {[%emt 0:00:15]} Nf6 {[%emt 0:00:24]} 3. Bg2 {[%emt 0:00:05]} g6 {[%emt 0:00:34]} 4. c4 {[%emt 0:00:40]} c6 {[%emt 0:00:55]} 5. b3 {[%emt 0:00:24]} Bg7 {[%emt 0:00:13]} 6. Bb2 {[%emt 0:00:06]} O-O {[%emt 0:00:18]} 7. O-O {[%emt 0:00:05]} Nbd7 {[%emt 0:02:45]} 8. d4 {[%emt 0:02:15]} Ne4 {[%emt 0:05:08]} 9. Nbd2 {[%emt 0:00:34][%cal Bb1d2,Bd2f3,Bf3e5,Be5d3,Bd3f4][%mdl 32]} Ndf6 {[%emt 0:04:01]} 10. Ne5 {[%emt 0:03:21]} Be6 {[%emt 0:05:48]} 11. Ndf3 {[%emt 0:11:51]} Rc8 {[%emt 0:07:04]} 12. c5 {[%emt 0:00:43]} Nd7 {[%emt 0:01:36]} 13. b4 {[%emt 0:01:01]} Nxe5 {[%emt 0:03:36]} 14. Nxe5 {[%emt 0:00:25]} f6 {[%emt 0:03:34]} 15. Nd3 {[%emt 0:00:28]} Qd7 {[%emt 0:04:12]} 16. Nf4 {[%emt 0:07:53] Wards off Bh3} Bf7 {[%emt 0:06:06]} 17. f3 {[%emt 0:02:06]} Ng5 {[%emt 0:01:24]} 18. h4 {[%emt 0:00:29]} Ne6 {[%emt 0:03:04][%cal Bg5e6,Be6g7,Bg7f5][%mdl 32]} 19. Nd3 {[%emt 0:02:17]} Bh6 {[%emt 0:01:11]} 20. Kh2 {[%emt 0:04:32]} Ng7 {[%emt 0:12:39]} 21. Bc1 {[%emt 0:11:25]} Bxc1 {[%emt 0:03:25]} 22. Qxc1 {[%emt 0:00:25]} Rce8 {[%emt 0:00:28]} 23. Qc3 {[%emt 0:06:36]} Qc7 {[%emt 0:02:15]} 24. f4 {[%emt 0:03:31][%cal Bf3f4,Bf4e5][%mdl 32]} Nf5 {[%emt 0:03:06]} 25. Bh3 {[%emt 0:05:16]} Nh6 {[%emt 0:03:27]} 26. a4 {[%emt 0:03:59]} e5 {[%emt 0:02:36]} 27. fxe5 $16 {[%emt 0:06:32] White is more active.} Be6 {[%emt 0:00:17]} 28. Bxe6+ {[%emt 0:03:19]} (28. exf6 Bxh3 29. Kxh3 Rxe2 $17) (28. Rxf6 $2 Rxf6 29. exf6 Bxh3 30. Kxh3 Qc8+ 31. Kh2 (31. Kg2 $2 Rxe2+ 32. Kg1 Re3 $19) 31... Rxe2+ 32. Kg1 Re3 33. f7+ Kg7 $19 (33... Nxf7 34. Kf2 $15)) 28... Rxe6 {[%emt 0:00:17]} 29. Rf4 {[%emt 0:00:43]} Rfe8 {[%emt 0:05:50]} (29... Qd7 $142) 30. Raf1 {[%emt 0:03:09]} (30. Rxf6 $2 Rxf6 (30... Ng4+ $2 31. Kh3 $19) 31. b5 Rf7 $19) 30... g5 {[%emt 0:01:24]} (30... Qg7 $16 {keeps fighting.} 31. Kh3 (31. Rxf6 Ng4+ 32. Kg1 Nxf6 $17) 31... Qd7) 31. hxg5 $18 {[%emt 0:01:46]} (31. Rxf6 Rxf6 32. Rxf6 (32. exf6 $2 {perishes.} Rxe2+ 33. Rf2 Ng4+ 34. Kg2 Nxf2 $19) 32... Ng4+ 33. Kg2 Nxf6 34. exf6 Re3 $11 (34... Rxe2+ 35. Kf3 $11)) 31... fxg5 {[%emt 0:00:06]} 32. R4f3 {[%emt 0:01:15]} Ng4+ {[%emt 0:00:51]} 33. Kg1 {[%emt 0:00:57]} Rh6 {[%emt 0:01:15] [#]} 34. R1f2 $2 {[%emt 0:10:29]} Nxf2 $11 {[%emt 0:05:17]} 35. Nxf2 {[%emt 0:00:03]} Qd7 {[%emt 0:00:10] Prevents Ng4.} 36. Qe3 {[%emt 0:01:09]} Rg6 {[%emt 0:00:21]} 37. g4 {[%emt 0:02:50]} Rf8 {[%emt 0:01:28]} 38. Kg2 {[%emt 0:00:03]} Rf7 {[%emt 0:05:01]} 39. Kg3 {[%emt 0:00:25]} Qe7 {[%emt 0:00:09]} 40. Rf5 {[%emt 0:01:02]} h5 {[%emt 0:03:06]} 41. gxh5 {[%emt 0:00:33]} (41. Kg2 $11) 41... Rxf5 $15 {[%emt 0:00:12]} 42. hxg6 $11 {[%emt 0:00:10][%mdl 4096] Endgame [#] KQR-KQN} Kg7 {[%emt 0:00:13]} (42... Qe6 $1 $17 43. b5 Kg7 (43... Qxg6 44. Kg2 $17)) 43. Ng4 {[%emt 0:04:02]} Kxg6 {[%emt 0:01:03]} 44. Qd3 {[%emt 0:02:36] and Ne3 would now be decisive} Qh7 {[%emt 0:00:13] Threatens to win with ...Qh4+.} 45. Ne3 {[%emt 0:00:22]} (45. Kg2 $5 Qh4 $8 46. Ne3 Qf2+ 47. Kh3 Qh4+ 48. Kg2 $11) 45... Qh4+ $1 {[%emt 0:00:09]} 46. Kg2 {[%emt 0:00:10] Chess con chili.} Qf2+ {[%emt 0:01:58]} 47. Kh1 {[%emt 0:00:00]} Qe1+ {[%emt 0:00:00]} 48. Kg2 {[%emt 0:00:00]} Qf2+ {[%emt 0:00:23]} 1/2-1/2

[Event "Slovakian ECo-C Extraliga 2024-25"]
[Site "Slovakia"]
[Date "2025.01.18"]
[Round "3.8"]
[White "Balogh, Peter"]
[Black "Stevik, Patrik"]
[Result "0-1"]
[Annotator "TA"]
[ECO "C54"]
[WhiteElo "2086"]
[BlackElo "2314"]
[PlyCount "62"]
[EventDate "2024.09.12"]
[EventType "team-tourn"]
[EventCountry "SVK"]
[SourceTitle "playchess.com"]
[Source "ChessBase"]
[SourceQuality "1"]
[TimeControl "5400+30"]

{[%evp 24,62,-77,-75,-76,-80,-67,-92,-91,-114,-114,-114,-114,-110,-102,-132,-119,-225,-111,-108,-90,-101,-101,-95,-102,-82,-100,-95,-84,-89,-39,-117,-115,-143,-145,-141,-145,-240,-252,-741,-727]} 1. e4 {[%emt 0:00:33]} e5 {[%emt 0:00:30]} 2. Nf3 {[%emt 0:00:12]} Nc6 {[%emt 0:00:00]} 3. Bc4 {[%emt 0:03:07]} Bc5 {[%emt 0:00:00]} 4. c3 {[%emt 0:01:02]} Nf6 {[%emt 0:00:00]} 5. d4 {[%emt 0:00:08]} exd4 {[%emt 0:00:04]} 6. cxd4 {[%emt 0:00:05]} Bb4+ {[%emt 0:00:01]} 7. Nc3 {[%emt 0:00:14]} Nxe4 {[%emt 0:00:05]} 8. O-O {[%emt 0:00:07]} Bxc3 {[%emt 0:01:21]} 9. d5 {[%emt 0:00:31]} Ne5 {[%emt 0:00:25]} 10. bxc3 {[%emt 0:11:27]} Nxc4 {[%emt 0:00:06]} 11. Re1 {[%emt 0:07:28]} Ncd6 {[%emt 0:06:45]} 12. Ng5 {[%emt 0:04:40]} O-O {[%emt 0:01:02]} 13. Nxe4 {[%emt 0:00:56]} Nxe4 {[%emt 0:00:16] C54: Giuoco Piano: 4 c3 Nf6, main lines with 5 d4 and 5 d3.} 14. Rxe4 {[%emt 0:00:08]} d6 {[%emt 0:00:37]} 15. Qd4 $146 {[%emt 0:09:22]} (15. Qf3 Bd7 16. Bd2 Re8 17. Rae1 Rxe4 18. Rxe4 f5 19. Re1 Qf6 20. c4 Re8 21. Rxe8+ Bxe8 {0-1 Kulon,K (2379)-Koellner,R (2454) St Veit op 43rd 2024 (4)}) 15... Bf5 {[%emt 0:07:10] Black is better.} 16. Rf4 {[%emt 0:06:27]} Bg6 {[%emt 0:01:17]} 17. c4 {[%emt 0:03:16]} Qe7 {[%emt 0:04:28][%cal Re7e1] [#]} 18. Bb2 {[%emt 0:02:02][%csl Gb2][%cal Rd4g7]} f6 {[%emt 0:00:17]} 19. h4 {[%emt 0:04:20]} Rfe8 {[%emt 0:03:22]} 20. g4 {[%emt 0:03:54] [#]} (20. Bc1 $17) 20... Qe5 {[%emt 0:02:39]} (20... Qe2 $1 $19 {is more deadly. Hoping for ...Re4.} 21. Kh2 Re4 22. Rxe4 Bxe4) 21. h5 {[%emt 0:10:09]} Qxd4 {[%emt 0:03:39]} (21... Bd3 22. Rd1 Be2 23. Re1 a6) 22. Bxd4 {[%emt 0:00:27]} Bd3 {[%emt 0:00:54]} 23. h6 {[%emt 0:02:16]} g5 {[%emt 0:02:29]} (23... Bxc4 {is interesting.} 24. hxg7 Bxd5 25. Bxf6 Re6) 24. Rxf6 {[%emt 0:07:59]} Re4 $1 {[%emt 0:00:19]} (24... Bxc4 25. Rf5 $16) 25. Be3 {[%emt 0:06:40]} Rxg4+ {[%emt 0:01:22]} ({But not} 25... Rxc4 26. f3 $11) 26. Kh2 {[%emt 0:00:11]} Re8 {[%emt 0:14:06]} (26... Rxc4 $17 27. Rg1 g4) 27. Rd1 {[%emt 0:12:07]} (27. c5 $1 $15) 27... Bxc4 $17 {[%emt 0:06:54]} 28. Rf5 {[%emt 0:00:31]} Rh4+ {[%emt 0:02:39]} 29. Kg3 {[%emt 0:00:26]} Rxh6 {[%emt 0:00:29]} (29... Bxa2 $2 {loses.} 30. Rxg5+ Kf7 31. Kxh4 $18) 30. Bxg5 {[%emt 0:00:46]} (30. Rxg5+ $17 Rg6 31. Rxg6+ hxg6 32. a4) 30... Rg6 $19 {[%emt 0:00:18]} 31. Kf4 $2 {[%emt 0:00:56]} (31. Kh4) 31... h6 {[%emt 0:00:14] Weighted Error Value: White=0.51/Black=0.13 (very precise)   Mistake:       	White=4     	Black=2      OK:         	White=2     	Black=10     Best:        	White=2     	Black=2      Strong:       	---       	Black=1} 0-1

[Event "Slovakian ECo-C Extraliga 2024-25"]
[Site "Slovakia"]
[Date "2025.01.18"]
[Round "3.8"]
[White "Havalda, Samuel"]
[Black "Rucek, Kristian"]
[Result "0-1"]
[Annotator "TA"]
[ECO "C12"]
[WhiteElo "1947"]
[BlackElo "2173"]
[PlyCount "54"]
[EventDate "2024.09.12"]
[EventType "team-tourn"]
[EventCountry "SVK"]
[SourceTitle "playchess.com"]
[Source "ChessBase"]
[SourceQuality "1"]
[TimeControl "5400+30"]

{[%evp 19,54,-18,-18,-48,-42,-72,-66,-62,-44,-139,-154,-150,-143,-240,-227,-408,-390,-571,-515,-933,-886,-834,-782,-778,-741,-983,-981,-933,-912,-1337,-1231,-2677,-2623,-2239,-1787,-1105,-1078]} 1. e4 {[%emt 0:00:04]} e6 {[%emt 0:00:18]} 2. d4 {[%emt 0:00:15]} d5 {[%emt 0:00:08]} 3. Nc3 {[%emt 0:00:32]} Nf6 {[%emt 0:00:31]} 4. Bg5 {[%emt 0:00:26]} Bb4 {[%emt 0:00:52]} 5. e5 {[%emt 0:00:43]} h6 {[%emt 0:00:06]} 6. Bd2 {[%emt 0:00:06]} Bxc3 {[%emt 0:00:05]} 7. bxc3 {[%emt 0:00:08]} Ne4 {[%emt 0:00:05]} 8. Qg4 {[%emt 0:03:54]} g6 {[%emt 0:00:05]} 9. Bd3 {[%emt 0:00:14]} Nxd2 {[%emt 0:00:22]} 10. Kxd2 {[%emt 0:00:06] [#]} c5 $1 {[%emt 0:00:34]} 11. f4 {[%emt 0:04:51]} (11. h4 Nc6) 11... Qa5 {[%emt 0:05:27]} 12. Nf3 {[%emt 0:06:17]} Nc6 {[%emt 0:03:33]} 13. dxc5 $1 {[%emt 0:12:43]} d4 {[%emt 0:10:27]} 14. h4 {[%emt 0:01:57]} (14. Rhd1 $15) 14... dxc3+ $17 {[%emt 0:03:23]} (14... Qxc3+ 15. Ke2 Qxc5 16. h5 $11) 15. Ke2 {[%emt 0:01:07]} Bd7 {[%emt 0:09:04][%cal Oc6b4]} (15... Qxc5 16. h5 g5 17. Rab1 $11) 16. h5 {[%emt 0:01:15]} (16. Rhb1 $17 O-O-O (16... Qxc5 17. Rb5 $17) 17. a3 (17. Rb5 Qa4 $17)) 16... gxh5 $19 {[%emt 0:01:44]} 17. Rxh5 $2 {[%emt 0:08:44]} (17. Qxh5 O-O-O (17... Qxc5 18. Ng5 $17) 18. a3) 17... O-O-O {[%emt 0:00:23]} ({Weaker is} 17... Qxc5 18. f5 $17) 18. Qh3 {[%emt 0:00:11]} (18. Ne1 {keeps fighting.} Qxc5 19. Qh4) 18... Nb4 {[%emt 0:04:45]} 19. Rxh6 {[%emt 0:06:45]} (19. Ne1 $142 Bb5 (19... Qxc5 $2 20. Qe3 $19) 20. Bxb5 Qxb5+ 21. Kf2 Qxc5+ 22. Kf1) 19... Rxh6 {[%emt 0:00:27]} 20. Qxh6 {[%emt 0:00:12]} Nxd3 {[%emt 0:14:26]} 21. cxd3 {[%emt 0:00:28]} Qa3 {[%emt 0:00:57] ...Qb2+ would now be deadly.} 22. Qh1 {[%emt 0:02:41]} Qb2+ {[%emt 0:04:45]} 23. Ke3 {[%emt 0:00:11]} Bb5 {[%emt 0:00:03]} 24. Rd1 {[%emt 0:02:20]} c2 {[%emt 0:00:09]} 25. Rc1 {[%emt 0:00:03]} Rxd3+ {[%emt 0:00:06]} 26. Kf2 {[%emt 0:00:26]} Rd1 {[%emt 0:00:59][%cal Od1h1]} 27. Qh8+ {[%emt 0:00:51]} Kc7 {[%emt 0:00:27]} 0-1